Cogmind - Beta 13 @@@ ROGUE MODE // 2024.04.10 @ 00:28:58 Player: Trekki Result: Destroyed by G-34 Mercenary with Small Laser Performance ------------- Evolutions (1) 500 Regions Visited (2) 400 Robots Destroyed (48) 240 Value Destroyed (1325) 1325 Prototype IDs (2) 40 Alien Tech Used (0) 0 Bonus (0) 0 TOTAL SCORE: 2505 Bonus ------- None Cogmind --------- Core Integrity 0/400 Matter 220/300 Energy 250/250 System Corruption 0% Temperature Cool (6) Movement Walking (190) Ox1 Location -9/Materials Parts ------- > --- POWER (1) -------- Ion Engine > --- PROPULSION (3) --- Aluminum Leg Aluminum Leg Aluminum Leg > --- UTILITY (3) ------ Improved Heat Sink High-capacity Storage Unit Signal Interpreter > --- WEAPON (2) ------- Shotgun Shotgun > --- INVENTORY (20) --- Ion Engine Light Ion Engine Aluminum Leg Aluminum Leg Aluminum Leg Improved Aluminum Leg Heat Sink Large Storage Unit Transport Network Coupler Improved EM Shotgun Medium Laser Heavy Particle Gun Assault Rifle Heavy Assault Rifle Heavy Assault Rifle Shotgun Heavy Flail Heavy Flail Peak State ------------ > --- POWER ------------ Ion Engine > --- PROPULSION ------- Aluminum Leg Aluminum Leg Aluminum Leg > --- UTILITY ---------- Improved Heat Sink High-capacity Storage Unit Signal Interpreter > --- WEAPON ----------- Improved EM Shotgun Heavy Particle Gun > --- INVENTORY -------- Ion Engine Light Ion Engine Aluminum Leg Aluminum Leg Aluminum Leg Heat Sink Large Storage Unit Medium Laser Assault Rifle Heavy Assault Rifle Heavy Assault Rifle Grenade Launcher Heavy Flail Heavy Flail [Rating: 18] Favorites ----------- Power Ion Engine Engine Ion Engine Propulsion Aluminum Leg Leg Aluminum Leg Wheel Compact Wheel Utility Large Storage Unit Device Heat Sink Storage Large Storage Unit Processor Signal Interpreter Protection Light Armor Plating Weapon Assault Rifle Energy Gun Particle Gun Ballistic Gun Assault Rifle Launcher Grenade Launcher Impact Weapon Heavy Flail Build | -11 -10 -9 ------- Run | Yrd Mat Mat Slots Evolved 2 | . . 2 Power . | . . . Propulsion 1 | . . 1 Utility 1 | . . 1 Weapon . | . . . Parts Attached 58 | 7 18 33 Power 3 | 1 1 1 Engine 3 | 1 1 1 Core . | . . . Reactor . | . . . Propulsion 14 | 2 4 8 Treads . | . . . Leg 12 | 2 4 6 Wheel 2 | . . 2 Hover . | . . . Flight . | . . . Utility 14 | 2 6 6 Device 4 | 1 2 1 Storage 7 | 1 4 2 Processor 1 | . . 1 Hackware . | . . . Protection 2 | . . 2 Artifact . | . . . Weapon 27 | 2 7 18 Energy Gun 13 | 1 5 7 Energy Cannon . | . . . Ballistic Gun 9 | 1 2 6 Ballistic Cannon . | . . . Launcher 3 | . . 3 Special Weapon . | . . . Impact Weapon 2 | . . 2 Slashing Weapon . | . . . Piercing Weapon . | . . . Special Melee Weapon . | . . . Unidentified Prototypes 2 | . . 2 Parts Lost 22 | . 8 14 Power 2 | . 1 1 Propulsion 8 | . 3 5 Utility 4 | . 2 2 Weapon 8 | . 2 6 Highest Loss Streak 8 | . 2 8 To Critical Strikes . | . . . Average Slot Usage (%) 96 | . 97 92 Engine 13 | . 13 10 Leg 28 | . 27 31 Device 11 | . 12 10 Storage 13 | . 14 10 Processor 1 | . . 6 Energy Gun 15 | . 17 10 Ballistic Gun 9 | . 10 7 Naked Turns 6 | . . 6 Heaviest Build 54 | 15 31 54 Greatest Support 30 | 20 20 30 Greatest Overweight (x) 2 | . 1 2 Average Overweight (x) . | . . . Largest Inventory Capacity 20 | 8 20 20 Average Capacity 15 | 6 14 19 Most Carried 19 | 8 16 19 Average Carried 12 | 4 13 11 Final Capacity 20 | 8 15 20 Final Carried 18 | 7 14 18 Class Distribution -------------------- 73% | Scavenger-Mutant 26% | Mutant Dominant Class ---------------- Scavenger-Mutant | -10/Materials Scavenger-Mutant | -9/Materials Resources | -11 -10 -9 ----------- Run | Yrd Mat Mat Matter Collected 886 | 224 296 366 Remotely . | . . . Salvage Created 2016 | 18 992 1006 Parts 102 | 4 43 55 Haulers Intercepted 2 | . . 2 Recyclers Shooed 3 | . . 3 Parts Field Recycled . | . . . Retrieved Matter . | . . . Parts Self-Destructed . | . . . Prevented . | . . . Kills | -11 -10 -9 ------- Run | Yrd Mat Mat Combat Hostiles Destroyed 32 | . 16 16 Guns 29 | . 16 13 AOE 3 | . . 3 Classes Destroyed 10 | 1 4 5 Worker 1 | . . 1 Tunneler 1 | 1 . . Hauler 2 | . . 2 Recycler 6 | . 3 3 Operator 1 | . 1 . Watcher 5 | . 3 2 Swarmer 2 | . . 2 Grunt 25 | . 16 9 Duelist 2 | . . 2 Sentry 3 | . . 3 Best Kill Streak 5 | 1 3 5 Combat Bots Only 4 | . 3 4 Max Kills in Single Turn 2 | 1 1 2 Gunslinging . | . . . Exploded 2 | . . 2 Melee . | . . . Uniques/NPCs Destroyed . | . . . Combat | -11 -10 -9 -------- Run | Yrd Mat Mat Hostile Shots Fired 239 | . 103 136 Missed 59 | . 22 37 Damage Taken 2599 | . 993 1606 Core 553 | . 145 408 Absorbed by Shields . | . . . Regen/Repaired (Parts) 68 | . 68 . Core Remaining (%) 71 | 100 42 . Volleys Fired 130 | 1 67 62 Largest 2 | 2 2 2 Hottest 115 | 70 115 115 Shots Fired 247 | 2 131 114 Gun 245 | 2 131 112 Cannon . | . . . Launcher 2 | . . 2 Special . | . . . Kinetic 89 | 1 37 51 Thermal 121 | 1 87 33 Explosive 2 | . . 2 Electromagnetic 35 | . 7 28 Robot Hit Streak 16 | 1 10 16 Robot Miss Streak 4 | . 4 4 Penetration Max . | . . . Secondary Targets 1 | . 1 . Max Gunslinging Chain 1 | . 1 . Shots Hit Robots 188 | 1 94 93 Core Hits 95 | 1 44 50 Critical Kills 1 | . . 1 Critical Parts Destroyed . | . . . Critical Strikes 9 | . 4 5 Burn 8 | . 4 4 Destroy 1 | . . 1 Melee Attacks 5 | . . 5 Impact 5 | . . 5 Slashing . | . . . Piercing . | . . . Sneak Attacks 1 | . . 1 Combat Hostiles . | . . . Follow-up Attacks . | . . . Damage Inflicted 3082 | 12 1255 1815 Guns 2549 | 12 1247 1290 Cannons . | . . . Explosions 457 | . . 457 Melee 55 | . . 55 Ramming 21 | . 8 13 Kinetic 836 | . 340 496 Thermal 1445 | 12 838 595 Explosive 207 | . . 207 Electromagnetic 518 | . 69 449 Impact 55 | . . 55 Slashing . | . . . Piercing . | . . . Highest Corruption . | . . . Average Corruption . | . . . Corruption Purged . | . . . Corruption Blocked . | . . . Overload Shots . | . . . Overflow Damage 71 | . . 71 Projectiles . | . . . Explosions 36 | . . 36 Melee 35 | . . 35 Knockbacks . | . . . Impact . | . . . Kinetic . | . . . Secondary . | . . . Self-Inflicted Damage 135 | . . 135 Shots 5 | . . 5 Rammed 1 | . . 1 Targets Rammed 7 | . 3 4 Kicked 6 | . 3 3 Crushed . | . . . Highest Temperature 288 | 9 288 156 Average Temperature 79 | 6 88 46 Received Heat Transfer 951 | . 561 390 Effects 3 | . 3 . Energy Bleed 2 | . 2 . Interference 1 | . 1 . Siege Activations . | . . . Robots Corrupted 1 | . . 1 Combat Hostiles . | . . . Parts Fried 1 | . . 1 Impact Corruptions 2 | . . 2 Robots Melted . | . . . Combat Hostiles . | . . . Parts Melted 7 | . 6 1 Heat Transferred 4150 | 37 2555 1558 Parts Sabotaged . | . . . Parts Stolen . | . . . Parts Stripped . | . . . Power Chain Reactions 5 | . . 5 Alert | -11 -10 -9 ------- Run | Yrd Mat Mat Peak Influence 397 | 5 152 397 Initial 29 | . 3 29 Average 90 | 1 43 227 Maximum Alert Level 1 | . . 1 Low Security (%) 81 | 100 100 30 Level 1 18 | . . 69 Level 2 . | . . . Level 3 . | . . . Level 4 . | . . . Level 5 . | . . . High Security . | . . . Max Security . | . . . Squads Dispatched 6 | . 4 2 Investigation 3 | . 3 . Extermination . | . . . Reinforcement 3 | . 1 2 Assault . | . . . Garrison . | . . . Intercept . | . . . Searches Triggered . | . . . Construction Impeded . | . . . Haulers Reinforced . | . . . Active Scanning Responses . | . . . Cargo Convoy Interrupts . | . . . Stealth | -11 -10 -9 --------- Run | Yrd Mat Mat Distress Signals 4 | . 1 3 Communications Jammed . | . . . Distress Signals . | . . . Times Spotted 63 | . 23 40 Peak Tracking Total 9 | . 4 9 Tactical Retreats 3 | . . 3 Traps | -11 -10 -9 ------- Run | Yrd Mat Mat Traps Triggered 4 | . 4 . Indirectly . | . . . Trap Hack Attempts . | . . . Triggered . | . . . Disarmed . | . . . Reprogrammed . | . . . Reused . | . . . Traps Extracted . | . . . Installed . | . . . Triggered . | . . . Machines | -11 -10 -9 ---------- Run | Yrd Mat Mat Machines Disabled 3 | . 1 2 Max in Single Turn 1 | . 1 1 Machines Repaired . | . . . Machines Dismantled . | . . . Machines Sabotaged . | . . . Overloaded Fab Kills . | . . . Hacking | -11 -10 -9 --------- Run | Yrd Mat Mat Machines Accessed 10 | . 7 3 Terminals 7 | . 5 2 Fabricators . | . . . Repair Stations 1 | . 1 . Recycling Units 2 | . 1 1 Scanalyzers . | . . . Garrison Access . | . . . Total Hacks 18 | . 12 6 Successful 8 | . 6 2 Failed 10 | . 6 4 Catastrophic 4 | . 3 1 Database Lockouts . | . . . Manual . | . . . Terminals 14 | . 9 5 Fabricators . | . . . Repair Stations 2 | . 2 . Recycling Units 2 | . 1 1 Scanalyzers . | . . . Garrison Access . | . . . Terminal Hacks 4 | . 3 1 Alert Level 1 | . 1 . Locate Traps 1 | . 1 . Dispatch Records 1 | . 1 . Hauler Manifests 1 | . . 1 Fabricator Hacks . | . . . Repair Station Hacks 2 | . 2 . Scan Component 1 | . 1 . Repair 1 | . 1 . Recycling Unit Hacks 2 | . 1 1 Report Inventory 2 | . 1 1 Scanalyzer . | . . . Garrison Access Hacks . | . . . Unauthorized Hacks . | . . . Terminals . | . . . Fabricators . | . . . Repair Stations . | . . . Recycling Units . | . . . Scanalyzers . | . . . Garrison Access . | . . . Data Cores Recovered . | . . . Used . | . . . Hacking Detections 5 | . 4 1 Full Trace Events 1 | . 1 . Feedback Events . | . . . Feedback Blocked . | . . . Robot Schematics Acquired . | . . . Robots Built . | . . . Authchips . | . . . Time . | . . . Total Robot Build Rating . | . . . Part Schematics Acquired . | . . . Parts Built . | . . . Authchips . | . . . Time . | . . . Total Part Build Rating . | . . . Parts Repaired 1 | . 1 . Time 26 | . 26 . Parts Recycled . | . . . Recycled Matter . | . . . Retrieved Matter . | . . . Retrieved Components . | . . . Parts Scanalyzed . | . . . Part Schematics Acquired . | . . . Parts Damaged . | . . . Bothacking | -11 -10 -9 ------------ Run | Yrd Mat Mat Used RIF Installer . | . . . Robots Hacked . | . . . Non-combat . | . . . Combat . | . . . Robot Hacks Applied . | . . . Relay Couplers Released . | . . . Fabnet Peak Effective % . | . . . Robots Rewired . | . . . Allies Hacked . | . . . Hacks Repelled . | . . . Allies | -11 -10 -9 -------- Run | Yrd Mat Mat Total Allies . | . . . Largest Group . | . . . Highest-Rated Group . | . . . Highest-Rated Ally . | . . . Total Orders . | . . . Ally Attacks . | . . . Total Damage . | . . . Kills . | . . . Allies Corrupted . | . . . Allies Melted . | . . . Intel | -11 -10 -9 ------- Run | Yrd Mat Mat Robot Analysis Total . | . . . Derelict Logs Recovered . | . . . Drone Launches . | . . . Drone Recoveries . | . . . Exploration | -11 -10 -9 ------------- Run | Yrd Mat Mat Turns Passed 3178 | 90 2258 830 Spaces Moved 1243 | 60 899 284 Core 25 | 14 . 11 Treads . | . . . Legs 1218 | 46 899 273 Wheels . | . . . Hover . | . . . Flight . | . . . Fastest Speed 50 | 50 120 50 Average Speed 180 | 103 184 182 Slowest Speed 260 | 120 190 260 Overloaded Moves . | . . . Propulsion Burnouts . | . . . Robots Hopped . | . . . Cave-ins Triggered . | . . . Exploration Rate (%) 43 | 4 98 28 Regions Visited 2 Branch Regions . Pre-discovered Areas . | . . . Known Exits Taken . | . . . Unknown Exits Taken 2 | 1 1 . Scrap Searched . | . . . Spaces Dug 4 | . . 4 Terrain Destroyed 37 | . . 37 Melee 4 | . . 4 Projectile . | . . . AOE 33 | . . 33 Terrain Rammed . | . . . Walls Destroyed . | . . . Machines Disabled . | . . . Actions | -11 -10 -9 --------- Run | Yrd Mat Mat Total 1921 | 86 1367 468 Wait 399 | 5 344 50 Move 1241 | 59 898 284 Hop . | . . . Pick Up 68 | 14 25 29 Fast Attach . | . . . Attach 38 | 7 9 22 Detach 1 | . . 1 Swap 20 | . 9 11 Drop 12 | . 12 . Fire 130 | 1 67 62 Melee 5 | . . 5 Ram 1 | . . 1 Kick 6 | . 3 3 Crush . | . . . Escape Stasis . | . . . Rewire . | . . . Trap . | . . . Miscellaneous . | . . . Route ------- -11/Scrapyard -10/Materials (discovered 6 exits: *Mat x3 / [*Min x2] / [*Sub]) -9/Materials History --------- Turn | Location | Event 14 | -11/Scrapyard | Discovered new exit (range 15) 91 | -11/Scrapyard | Entered Materials 300 | -10/Materials | Build established: Mutant 467 | -10/Materials | Discovered new exit (range 9) 771 | -10/Materials | Repaired Med. Laser 923 | -10/Materials | Core integrity fell below 50% 1110 | -10/Materials | Discovered new exit (range 15) 1147 | -10/Materials | Build established: Scavenger-Mutant 1298 | -10/Materials | Discovered new exit (range 12) 1532 | -10/Materials | Discovered new exit (range 8) 2029 | -10/Materials | Discovered new exit (range 13) 2345 | -10/Materials | Discovered new exit (range 3) 2349 | -10/Materials | Entered another Materials area 2349 | -9/Materials | Evolved 2 slots: Propulsion x1, Utility x1 2448 | -9/Materials | Released all parts (4) 2460 | -9/Materials | Core integrity fell below 50% 2490 | -9/Materials | Lost 8 parts (1p3n1u3w) 2558 | -9/Materials | Core integrity fell below 20% 3105 | -9/Materials | Lost 3 parts (1n2w) 3179 | -9/Materials | Destroyed by G-34 Mercenary with Small Laser Last Messages --------------- 03071_ R-06 Scavenger collects Imp. Aluminum Leg. 03072_ R-06 Scavenger collects Katana. 03074_ Chain reaction triggered in Ion Engine. 03074_ G-34 Mercenary destroyed. 03074_ Imp. EM Shotgun destroyed. 03074_ Destroyed Imp. EM Shotgun. 03083_ Acquired Aluminum Leg. 03086_ Acquired Corrupted Imp. Aluminum Leg. 03087_ Acquired 33 matter. 03088_ Acquired 18 matter. 03093_ U-05 Engineer lays Concrete. 03110_ O-16 Technician: "IFF HANDSHAKE FAILED. SECURING TERMINAL." 03117_ M-13 Machinist repairs G-34 Mercenary. 03122_ ALERT: Hostiles spotted, dispatching reinforcements to Terminal M006. 03122_ G-34 Mercenary destroyed. 03133_ M-13 Machinist repairs Com. Wheel. 03141_ Destroyed Datajack. 03169_ G-34 Mercenary destroyed. 03179_ R-06 Scavenger collects Aluminum Leg. Map ----- +----------------------------------------------------+ | ????????????????????????????????###### # | | ????????????????????????????????# + | | ????????????????????????????????# # "T" | | ????????????????????????????????# # | | ????????????????????????????????# ############## | | ???????????????????????????###### # ##### | | ???????????????????????????# # "" """ ## ! | | ????????????????????# ?????# # "Y """ ## | | ????????????????????# ?????# # "" """ ## | | ????????????????????# ????## # ## | | ?????????????????####/##### ##+####+### "" | | ?????????????????# # # "" | | ?????????????????#""" % % + "" | | ?????????????????#"R " # | | ?????????????????#""" # ###########+### "" | | ?????????????????# # # ##??#####?# ## "" | | ?????????????????# """ ######?????????# ## "" | | ?????????????????# """ #??????????????# ## | | ?????????????????# """ #??????????????# ##"## | | ?????????????????# #??????????????# ####? | | ??????????+###########+#########?????????# #???? | | ???????? % #?????????#####???? | | ???????? r #?????????????????? | | ???????? % #?????????????????? | | ?????????#+#############g### +?????????????????? | | ?????????????????# =@ # #?????????????????? | | ?????????????????# #? #?????????????????? | | ?????????????????# """ #? #?????????????????? | | ?????????????????# """ #?? ?????????????????? | | ?????????????????#"" """ #?? ????????????????? | | ?????????????????#"T #??? ???????????????? | | ?????????????????#"" #???####??????????????? | | ?????????????????# #?????????????????????? | | ?????????????????###########?????????????????????? | | ?????????????????????????????????????????????????? | | ?????????????????????????????????????????????????? | | ?????????????????????????????????????????????????? | | ?????????????????????????????????????????????????? | | | | | | | | | | | | | | | | | | | | | | | | | +----------------------------------------------------+ Best States ------------- Heat Dissipation 42 Energy Generation 10 Energy Capacity 250 Matter Stores 300 Matter Capacity 300 Sight Range 16 Terrain Scan Density 10 Armor Coverage 150 Evasion (%) 55 Item Schematics ----------------- None Robot Schematics ------------------ None Fabricated ------------ Nothing Alien Tech Used ----------------- None Achievements -------------- None Challenges ------------ None Game ------ Seed TachyonPhaseScreen Manual? 0 Play Time 00:44:56 Cumulative 12.1 hours Start 2024.04.09 @ 23:37:05 End 2024.04.10 @ 00:28:58 Sessions 1 Manual Loads 0 Difficulty Rogue Special Mode None Game No. 5 Rogue 5 Adventurer 0 Explorer 0 Win Type - Total 0 Types 0/0/0/0/0/0/0/0/0 Lore% 7 Gallery% 16 Achievement% 13 Wizard Run 0 Options --------- Layout 0 ASCII 0 Keyboard 0 Movement Mouse Keybinds 0 Fullscreen 2 Font 18/SmallcapsGlow Map View 76x50 Zoom Use 0% Tactical HUD 1 Map Filters NONE Filters NONE Steam 1 RUN: 9f52c9a5-74c1-4cc5-9eb2-e87ac307c228